Department family,Entity,Date,Expense type,Expense area,Supplier,Transaction number,Amount
Department of Health,University Hospitals of Morecambe Bay NHS Foundation Trust,04-May-16,Rates,Estates & Facilities,BOROUGH OF BARROW-IN-FURNESS,1162799,56741
Department of Health,University Hospitals of Morecambe Bay NHS Foundation Trust,04-May-16,CQC Contribution,Trust Board,CARE QUALITY COMMISSION,1158329,166243
Department of Health,University Hospitals of Morecambe Bay NHS Foundation Trust,04-May-16,BCT Project Support,Trust Board,DELOITTE LLP,1156712,38040
Department of Health,University Hospitals of Morecambe Bay NHS Foundation Trust,04-May-16,BCT Project Support,Trust Board,DELOITTE LLP,1156713,26400
Department of Health,University Hospitals of Morecambe Bay NHS Foundation Trust,04-May-16,Agency ODPs,Theatres,HB RETINUE LTD,1160794,32274.38
Department of Health,University Hospitals of Morecambe Bay NHS Foundation Trust,04-May-16,Agency Midwives,Womens & Childrens,HB RETINUE LTD,1160795,44884.12
Department of Health,University Hospitals of Morecambe Bay NHS Foundation Trust,04-May-16,Drugs,Pharmacy,HEALTHCARE AT HOME LIMITED,1160471,27120
Department of Health,University Hospitals of Morecambe Bay NHS Foundation Trust,04-May-16,Rates,Estates & Facilities,LANCASTER CITY COUNCIL,1162791,46801
Department of Health,University Hospitals of Morecambe Bay NHS Foundation Trust,04-May-16,Payroll Services,Trust Wide,NHS SHARED BUSINESS SERVICE LTD,1160160,28346.4
Department of Health,University Hospitals of Morecambe Bay NHS Foundation Trust,04-May-16,Maintenance Contract,Estates & Facilities,NHS SUPPLY CHAIN,1156532,29109.15
Department of Health,University Hospitals of Morecambe Bay NHS Foundation Trust,04-May-16,AQUA Membership,Corporate,SALFORD ROYAL NHS FOUNDATION TRUST,1159219,40000
Department of Health,University Hospitals of Morecambe Bay NHS Foundation Trust,04-May-16,Rates,Estates & Facilities,SOUTH LAKELAND DISTRICT COUNCIL,1162800,36654
Department of Health,University Hospitals of Morecambe Bay NHS Foundation Trust,11-May-16,Laundry,Estates & Facilities,BERENDSEN UK LTD,1155457,45474.31
Department of Health,University Hospitals of Morecambe Bay NHS Foundation Trust,11-May-16,Laundry,Estates & Facilities,BERENDSEN UK LTD,1155472,32474.9
Department of Health,University Hospitals of Morecambe Bay NHS Foundation Trust,11-May-16,Pacemakers,Cardiac Centre,BOSTON SCIENTIFIC LTD,1146557,39600
Department of Health,University Hospitals of Morecambe Bay NHS Foundation Trust,11-May-16,Maintenance Contract,Information Technology,CAPITA SECURE INFO SOLUTIONS LTD,1155537,151200
Department of Health,University Hospitals of Morecambe Bay NHS Foundation Trust,11-May-16,Drugs,Pharmacy,ELI LILLY & COMPANY LTD,1159403,28800
Department of Health,University Hospitals of Morecambe Bay NHS Foundation Trust,11-May-16,Maintenance Contract,Information Technology,GE MEDICAL SYSTEMS LTD,1158048,53998.61
Department of Health,University Hospitals of Morecambe Bay NHS Foundation Trust,11-May-16,Drugs,Pharmacy,GILEAD SCIENCES LTD,1158242,26506.39
Department of Health,University Hospitals of Morecambe Bay NHS Foundation Trust,11-May-16,Agency Medical Staff - Management Costs,Trust Wide,HB RETINUE LTD,1160797,37119.22
Department of Health,University Hospitals of Morecambe Bay NHS Foundation Trust,11-May-16,Blood & Blood components contract,Core Clinical,NHS BLOOD & TRANSPLANT,1162757,35908.92
Department of Health,University Hospitals of Morecambe Bay NHS Foundation Trust,11-May-16,Blood & Blood components contract,Core Clinical,NHS BLOOD & TRANSPLANT,1162758,54352.67
Department of Health,University Hospitals of Morecambe Bay NHS Foundation Trust,11-May-16,NHS Product Sales,Trust Wide,NHS SUPPLY CHAIN,1162772,144421.53
Department of Health,University Hospitals of Morecambe Bay NHS Foundation Trust,11-May-16,Drugs,Pharmacy,ROCHE PRODUCTS LTD,1158457,35627.23
Department of Health,University Hospitals of Morecambe Bay NHS Foundation Trust,11-May-16,Waiting List (Additional Capacity),Surgery,SPIRE HEALTHCARE LTD,1153124,40901.45
Department of Health,University Hospitals of Morecambe Bay NHS Foundation Trust,11-May-16,Recharge Specialist Registrars,Trust Wide,THE PENNINE ACUTE HOSPITALS NHS TRUST,1103853,45525.86
Department of Health,University Hospitals of Morecambe Bay NHS Foundation Trust,11-May-16,Hospital Wide Tap Renewal Scheme,Estates & Facilities,WOLSELEY UK LTD,1151286,25417.9
Department of Health,University Hospitals of Morecambe Bay NHS Foundation Trust,18-May-16,Beds Managed Contract,Trust Wide,ARJO HUNTLEIGH LTD,1159608,44668.1
Department of Health,University Hospitals of Morecambe Bay NHS Foundation Trust,18-May-16,Laundry,Estates & Facilities,BERENDSEN UK LTD,1155808,21241.65
Department of Health,University Hospitals of Morecambe Bay NHS Foundation Trust,18-May-16,Waiting List (Additional Capacity),Surgery,BMI HEALTHCARE LTD,1154882,65152.01
Department of Health,University Hospitals of Morecambe Bay NHS Foundation Trust,18-May-16,Hardware,Information Technology,CAPITA IT SERVICES,1165864,137488.8
Department of Health,University Hospitals of Morecambe Bay NHS Foundation Trust,18-May-16,Hardware,Information Technology,CAPITA IT SERVICES,1165874,57084
Department of Health,University Hospitals of Morecambe Bay NHS Foundation Trust,18-May-16,Electrical Services,Capital Services,CHRIS BOWKER LIMITED,1154501,71917.9
Department of Health,University Hospitals of Morecambe Bay NHS Foundation Trust,18-May-16,Agency Medical Staff,Pathology,MAINPAY LIMITED,1166626,33875.4
Department of Health,University Hospitals of Morecambe Bay NHS Foundation Trust,18-May-16,Pacemakers,Cardiac Centre,MEDTRONIC LTD,1159631,28800
Department of Health,University Hospitals of Morecambe Bay NHS Foundation Trust,18-May-16,Agency Medical Staff,Ophthalmology,MINOR OPS LIMITED,1155470,31724.16
Department of Health,University Hospitals of Morecambe Bay NHS Foundation Trust,18-May-16,NHS Product Sales,Trust Wide,NHS SUPPLY CHAIN,1164284,129065.07
Department of Health,University Hospitals of Morecambe Bay NHS Foundation Trust,18-May-16,Electricity,Estates & Facilities,NPOWER,1165248,70373.58
Department of Health,University Hospitals of Morecambe Bay NHS Foundation Trust,18-May-16,Electricity,Estates & Facilities,NPOWER,1165249,28586.54
Department of Health,University Hospitals of Morecambe Bay NHS Foundation Trust,18-May-16,Electricity,Estates & Facilities,NPOWER,1165250,60732.9
Department of Health,University Hospitals of Morecambe Bay NHS Foundation Trust,18-May-16,Drugs,Pharmacy,ROCHE PRODUCTS LTD,1160058,33406.14
Department of Health,University Hospitals of Morecambe Bay NHS Foundation Trust,18-May-16,Drugs,Pharmacy,ROCHE PRODUCTS LTD,1160863,41010.92
Department of Health,University Hospitals of Morecambe Bay NHS Foundation Trust,18-May-16,Recharge Specialist Registrars,Trust Wide,THE PENNINE ACUTE HOSPITALS NHS TRUST,1162415,307000
Department of Health,University Hospitals of Morecambe Bay NHS Foundation Trust,18-May-16,Recharge Specialist Registrars,Trust Wide,THE PENNINE ACUTE HOSPITALS NHS TRUST,1162417,83000
Department of Health,University Hospitals of Morecambe Bay NHS Foundation Trust,18-May-16,Recharge Specialist Registrars,Trust Wide,THE PENNINE ACUTE HOSPITALS NHS TRUST,1162420,67000
Department of Health,University Hospitals of Morecambe Bay NHS Foundation Trust,25-May-16,Managed Service Contract,Pathology,BECKMAN COULTER UK LTD,1165054,23992.32
Department of Health,University Hospitals of Morecambe Bay NHS Foundation Trust,25-May-16,Managed Service Contract,Pathology,BECKMAN COULTER UK LTD,1165055,160671.62
Department of Health,University Hospitals of Morecambe Bay NHS Foundation Trust,25-May-16,Laundry,Estates & Facilities,BERENDSEN UK LTD,1163055,35809.57
Department of Health,University Hospitals of Morecambe Bay NHS Foundation Trust,25-May-16,Maintenance Contract,Radiology,CARESTREAM HEALTH UK LTD,1155950,44237
Department of Health,University Hospitals of Morecambe Bay NHS Foundation Trust,25-May-16,Managed Service Contract,Corporate,CARVETI PARTNERSHIP LTD,1167992,77885
Department of Health,University Hospitals of Morecambe Bay NHS Foundation Trust,25-May-16,Medical Equipment,Endoscopy,CLEARVIEW ENDOSCOPY LTD,1166364,180577.2
Department of Health,University Hospitals of Morecambe Bay NHS Foundation Trust,25-May-16,Gas,Estates & Facilities,CORONA ENERGY RETAIL 4 LTD,1168215,31950.24
Department of Health,University Hospitals of Morecambe Bay NHS Foundation Trust,25-May-16,CT Repair,Radiology,GE MEDICAL SYSTEMS LTD,1161292,21334.65
Department of Health,University Hospitals of Morecambe Bay NHS Foundation Trust,25-May-16,Agency ODPs,Theatres,HB RETINUE LTD,1163593,26198.23
Department of Health,University Hospitals of Morecambe Bay NHS Foundation Trust,25-May-16,Agency Midwives,Womens & Childrens,HB RETINUE LTD,1163594,50007.93
Department of Health,University Hospitals of Morecambe Bay NHS Foundation Trust,25-May-16,Agency Medical Staff - Management Costs,Trust Wide,HB RETINUE LTD,1167236,31071.83
Department of Health,University Hospitals of Morecambe Bay NHS Foundation Trust,25-May-16,Agency ODPs,Theatres,HB RETINUE LTD,1167241,25691.39
Department of Health,University Hospitals of Morecambe Bay NHS Foundation Trust,25-May-16,Agency Medical Staff - Management Costs,Trust Wide,HB RETINUE LTD,1167245,40424.09
Department of Health,University Hospitals of Morecambe Bay NHS Foundation Trust,25-May-16,Maintenance Contract,Radiology,MED IMAGING,1162932,93638.65
Department of Health,University Hospitals of Morecambe Bay NHS Foundation Trust,25-May-16,Prescription Recharges,Pharmacy,NHS BUSINESS SERVICES AUTHORITY,1167023,269463.11
Department of Health,University Hospitals of Morecambe Bay NHS Foundation Trust,25-May-16,NHS Product Sales,Trust Wide,NHS SUPPLY CHAIN,1165822,150195.55
Department of Health,University Hospitals of Morecambe Bay NHS Foundation Trust,25-May-16,Maintenance Contract,Information Technology,SPECIALIST COMPUTER CENTRES LTD,1160800,22000
Department of Health,University Hospitals of Morecambe Bay NHS Foundation Trust,25-May-16,Hospital Wide Tap Renewal Scheme,Estates & Facilities,WOLSELEY UK LTD,1151287,25417.9
Department of Health,University Hospitals of Morecambe Bay NHS Foundation Trust,25-May-16,Hospital Wide Tap Renewal Scheme,Estates & Facilities,WOLSELEY UK LTD,1151522,25417.9
Department of Health,University Hospitals of Morecambe Bay NHS Foundation Trust,31-May-16,Recharge Blood Products,Pathology,CENTRAL MANCHESTER UNI HOSP FT,1140059,25920
Department of Health,University Hospitals of Morecambe Bay NHS Foundation Trust,31-May-16,CNST Premium,Corporate,NHS LITIGATION AUTHORITY,1169734,870576
